fUSD/lending_fUSD_20240602
["ID","MTS","AMOUNT","RATE_DAILY","PERIOD"]
[328420714,1717371090035,-500.0,0.00032155,4]
[328420715,1717371090047,-800.9,0.00032155,4]
[328420716,1717371090060,-1483.14,0.00032155,4]
[328420717,1717371090073,-966.28,0.00032155,4]
[328420718,1717371090086,-500.0,0.00032155,4]
[328420719,1717371090098,-500.0,0.00032155,4]
[328420720,1717371090110,-500.0,0.00032155,4]
[328420721,1717371090122,-500.0,0.00032155,4]
[328420722,1717371090134,-525.16385101,0.00032155,4]
[328420723,1717371090147,-500.0,0.00032155,4]
[328420724,1717371090159,-500.0,0.00032155,4]
[328420725,1717371090172,-537.33444784,0.00032155,4]
[328420726,1717371090184,-500.0,0.00032155,4]
[328420727,1717371090197,-1014.25,0.00032155,4]
[328420728,1717371090209,-500.0,0.00032155,4]
[328420729,1717371090221,-500.0,0.00032155,4]
[328420730,1717371090233,-500.0,0.00032155,4]
[328420731,1717371090245,-1282.94,0.00032155,4]
[328420732,1717371090258,-500.0,0.00032155,4]
[328420733,1717371090271,-543.91332377,0.00032155,4]
[328420734,1717371090283,-816.22,0.00032155,4]
[328420735,1717371090295,-1358.74,0.00032155,4]
[328420736,1717371090308,-500.0,0.00032155,4]
[328420737,1717371090320,-673.28,0.00032155,4]
[328420738,1717371090333,-500.0,0.00032155,4]
[328420739,1717371090345,-432.50989069,0.00032155,4]
[328420740,1717371090358,-704.95,0.00032155,4]
[328420741,1717371090369,-500.0,0.00032155,4]
[328420742,1717371090381,-500.0,0.00032155,4]
[328420743,1717371090394,-500.0,0.00032155,4]
[328420744,1717371090405,-500.0,0.00032155,4]
[328420745,1717371090418,-2030.46,0.00032155,4]
[328420746,1717371090430,-157.99545149,0.00032155,4]
[328420747,1717371090443,-500.0,0.00032155,4]
[328420748,1717371090455,-500.0,0.00032155,4]
[328420749,1717371090467,-516.44664292,0.00032155,4]
[328420750,1717371090480,-500.0,0.00032155,4]
[328420751,1717371090492,-521.18959197,0.00032155,4]
[328420752,1717371090504,-500.0,0.00032155,4]
[328420753,1717371090516,-500.0,0.00032155,4]
[328420754,1717371090528,-518.04,0.00032155,4]
[328420755,1717371090541,-500.0,0.00032155,4]
[328420756,1717371090553,-500.0,0.00032155,4]
[328420757,1717371090565,-500.0,0.00032155,4]
[328420758,1717371090577,-375.78211473,0.00032155,4]
[328420759,1717371090589,-500.0,0.00032155,4]
[328420760,1717371090601,-500.0,0.00032155,4]
[328420761,1717371090613,-500.0,0.00032155,4]
[328420762,1717371090625,-500.0,0.00032155,4]
[328420763,1717371090638,-500.0,0.00032155,4]
[328420764,1717371090650,-500.0,0.00032155,4]
[328420765,1717371090662,-500.0,0.00032155,4]
[328420766,1717371090678,-673.88,0.00032155,4]
[328420767,1717371090693,-500.0,0.00032155,4]
[328420768,1717371090707,-500.0,0.00032155,4]
[328420769,1717371090721,-1046.32,0.00032155,4]
[328420770,1717371090733,-500.0,0.00032155,4]
[328420771,1717371090747,-500.0,0.00032155,4]
[328420772,1717371090758,-1211.44,0.00032155,4]
[328420773,1717371090771,-500.0,0.00032155,4]
[328420774,1717371090783,-915.71,0.00032155,4]
[328420775,1717371090796,-672.72,0.00032155,4]
[328420776,1717371090808,-504.96,0.00032155,4]
[328420777,1717371090820,-1228.24,0.00032155,4]
[328420778,1717371090832,-2678.02,0.00032155,4]
[328420779,1717371090844,-515.87,0.00032155,4]
[328420780,1717371090856,-622.96,0.00032155,4]
[328420781,1717371090869,-893.79,0.00032155,4]
[328420782,1717371090881,-638.82,0.00032155,4]
[328420783,1717371090893,-1208.18,0.00032155,4]
[328420784,1717371090905,-500.0,0.00032155,4]
[328420785,1717371090917,-523.2,0.00032155,4]
[328420786,1717371090929,-1277.74,0.00032155,4]
[328420787,1717371090940,-154.47316269,0.0003217,7]
[328420788,1717371090952,-152.15130497,0.00032171,7]
[328420789,1717371090963,-150.0,0.00032174,7]
[328420790,1717371090975,-2500.0,0.0003218,2]
[328420791,1717371090988,-155.96669712,0.00032181,7]
[328420792,1717371090999,-150.0,0.00032182,7]
[328420793,1717371091012,-15107.47236123,0.00032189,2]
[328420794,1717371091024,-500.0,0.00032189,4]
[328420795,1717371091037,-500.0,0.00032189,4]
[328420796,1717371091048,-200.0,0.0003219,2]
[328420797,1717371091060,-200.0,0.0003219,2]
[328420798,1717371091071,-200.0,0.0003219,2]
[328420799,1717371091083,-150.0,0.00032197,7]
[328420800,1717371091094,-1499.09,0.000322,2]
[328420801,1717371091107,-1268.29,0.000322,2]
[328420802,1717371091118,-150.0,0.00032209,7]
[328420803,1717371091131,-3753.36893321,0.00032214,4]
[328420804,1717371091142,-500.0,0.00032225,4]
[328420805,1717371091154,-500.0,0.00032225,4]
[328420806,1717371091167,-631.19,0.00032225,4]
[328420807,1717371091179,-500.0,0.00032225,4]
[328420808,1717371091191,-694.92,0.00032225,4]
[328420809,1717371091203,-500.0,0.00032225,4]
[328420810,1717371091459,-500.0,0.00032225,4]
[328420811,1717371091476,-500.0,0.00032225,4]
[328420812,1717371091485,-798.44,0.00032225,4]
[328420813,1717371091494,-500.0,0.00032225,4]
[328420814,1717371091508,-500.0,0.00032225,4]
[328420815,1717371091517,-1024.48,0.00032225,4]
[328420816,1717371091526,-797.99,0.00032225,4]
[328420817,1717371091535,-763.86,0.00032225,4]
[328420818,1717371091545,-638.9,0.00032225,4]
[328420819,1717371091554,-1096.67,0.00032225,4]
[328420820,1717371091564,-1679.78,0.00032225,4]
[328420821,1717371091573,-500.0,0.00032225,4]
[328420822,1717371091582,-500.0,0.00032225,4]
[328420823,1717371091591,-500.0,0.00032225,4]
[328420824,1717371091601,-606.79,0.00032225,4]
[328420825,1717371091610,-537.93,0.00032225,4]
[328420826,1717371091619,-777.28,0.00032226,4]
[328420827,1717371091629,-500.0,0.00032226,4]
[328420828,1717371091638,-500.0,0.00032226,4]
[328420829,1717371091648,-4734.28,0.00032226,4]
[328420830,1717371091657,-500.0,0.00032226,4]
[328420831,1717371091667,-500.0,0.00032226,4]
[328420832,1717371091680,-936.92,0.00032226,4]
[328420833,1717371091689,-5685.91,0.00032226,4]
[328420834,1717371091698,-756.95,0.00032226,4]
[328420835,1717371091709,-971.06,0.00032226,4]
[328420836,1717371091723,-599.95,0.00032226,4]
[328420837,1717371091733,-1028.0,0.00032226,4]
[328420838,1717371091745,-572.72,0.00032226,4]
[328420839,1717371091755,-641.03,0.00032226,4]
[328420840,1717371091765,-1195.81,0.00032226,4]
[328420841,1717371091774,-500.0,0.00032226,4]
[328420842,1717371091783,-1051.95,0.00032226,4]
[328420843,1717371091792,-598.95,0.00032226,4]
[328420844,1717371091801,-965.74,0.00032226,4]
[328420845,1717371091810,-995.94,0.00032226,4]
[328420846,1717371091819,-626.65,0.00032226,4]
[328420847,1717371091829,-500.0,0.00032226,4]
[328420848,1717371091838,-844.41,0.00032226,4]
[328420849,1717371091847,-640.54,0.00032226,4]
[328420850,1717371091857,-1129.49,0.00032226,4]
[328420851,1717371091866,-1440.55,0.00032226,4]
[328420852,1717371091875,-3069.82,0.00032226,4]
[328420853,1717371091884,-500.0,0.00032226,4]
[328420854,1717371091893,-500.0,0.00032227,4]
[328420855,1717371091902,-500.0,0.00032227,4]
[328420856,1717371091912,-500.0,0.00032227,4]
[328420857,1717371091921,-500.0,0.00032227,4]
[328420858,1717371091930,-881.16,0.00032227,4]
[328420859,1717371091939,-877.71,0.00032227,4]
[328420860,1717371091948,-500.0,0.00032227,4]
[328420861,1717371091957,-500.0,0.00032227,4]
[328420862,1717371091966,-500.0,0.00032227,4]
[328420863,1717371091975,-640.4,0.00032227,4]
[328420864,1717371091984,-640.75,0.00032227,4]
[328420865,1717371091993,-500.0,0.00032227,4]
[328420866,1717371092003,-500.0,0.00032227,4]
[328420867,1717371092012,-500.0,0.00032227,4]
[328420868,1717371092021,-500.0,0.00032227,4]
[328420869,1717371092030,-500.0,0.00032227,4]
[328420870,1717371092039,-522.27804841,0.00032227,4]
[328420871,1717371092049,-584.71,0.00032227,4]
[328420872,1717371092058,-540.15,0.00032227,4]
[328420873,1717371092067,-500.0,0.00032227,4]
[328420874,1717371092076,-500.0,0.00032227,4]
[328420875,1717371092085,-500.0,0.00032227,4]
[328420876,1717371092095,-500.0,0.00032227,4]
[328420877,1717371092104,-500.0,0.00032227,4]
[328420878,1717371092113,-500.0,0.00032227,4]
[328420879,1717371092122,-725.51,0.00032227,4]
[328420880,1717371092132,-500.0,0.00032227,4]
[328420881,1717371092142,-693.57,0.00032227,4]
[328420882,1717371092151,-500.0,0.00032227,4]
[328420883,1717371092160,-500.0,0.00032227,4]
[328420884,1717371092169,-715.0,0.00032227,4]
[328420885,1717371092178,-698.24,0.00032227,4]
[328420886,1717371092188,-558.89,0.00032227,4]
[328420887,1717371092197,-500.0,0.00032227,4]
[328420888,1717371092207,-727.94,0.00032227,4]
[328420889,1717371092216,-500.0,0.00032227,4]
[328420890,1717371092225,-500.0,0.00032227,4]
[328420891,1717371092235,-500.0,0.00032227,4]
[328420892,1717371092244,-500.0,0.00032227,4]
[328420893,1717371092253,-898.02,0.00032227,4]
[328420894,1717371092262,-899.78,0.00032227,4]
[328420895,1717371092271,-500.0,0.00032227,4]
[328420896,1717371092280,-150.0,0.00032227,4]
[328420897,1717371092290,-500.0,0.00032227,4]
[328420898,1717371092300,-500.0,0.00032227,4]
[328420899,1717371092309,-500.0,0.00032227,4]
[328420900,1717371092319,-500.0,0.00032227,4]
[328420901,1717371092328,-542.64,0.00032227,4]
[328420902,1717371092338,-518.75,0.00032227,4]
[328420903,1717371092347,-1142.42,0.00032227,4]
[328420904,1717371092357,-500.0,0.00032227,4]
[328420905,1717371092366,-566.15,0.00032227,4]
[328420906,1717371092375,-1123.42,0.00032227,4]
[328420907,1717371092384,-1085.2,0.00032227,4]
[328420908,1717371092394,-1205.63,0.00032227,4]
[328420909,1717371092403,-500.0,0.00032227,4]
[328420910,1717371092412,-8789.4,0.00032227,4]
[328420911,1717371092422,-736.38,0.00032227,4]
[328420912,1717371092431,-797.08,0.00032227,4]
[328420913,1717371092440,-26146.55,0.00032227,4]
[328420914,1717371092449,-500.0,0.00032227,4]
[328420915,1717371092459,-553.37,0.00032227,4]
[328420916,1717371092468,-500.0,0.00032227,4]
[328420917,1717371092477,-859.62,0.00032227,4]
[328420918,1717371092487,-500.0,0.00032227,4]
[328420919,1717371092496,-500.0,0.00032227,4]
[328420920,1717371092505,-500.0,0.00032227,4]
[328420921,1717371092514,-500.0,0.00032227,4]
[328420922,1717371092523,-799.72,0.00032227,4]
[328420923,1717371092532,-1125.65,0.00032227,4]
[328420924,1717371092541,-514.95,0.00032227,4]
[328420925,1717371092551,-500.0,0.00032227,4]
[328420926,1717371092560,-7152.07,0.00032227,4]
[328420927,1717371092570,-1737.83,0.00032227,4]
[328420928,1717371092579,-1275.64,0.00032227,4]
[328420929,1717371092589,-500.0,0.00032227,4]
[328420930,1717371092598,-944.32,0.00032227,4]
[328420931,1717371092607,-508.82,0.00032227,4]
[328420932,1717371092616,-1901.92,0.00032227,4]
[328420933,1717371092626,-500.0,0.00032227,4]
[328420934,1717371092636,-500.0,0.00032227,4]
[328420935,1717371092646,-2064.47,0.00032227,4]
[328420936,1717371092656,-500.0,0.00032227,4]
[328420937,1717371092667,-500.0,0.00032227,4]
[328420938,1717371092679,-1245.2,0.00032227,4]
[328420939,1717371092688,-1601.21,0.00032227,4]
[328420940,1717371092697,-620.28,0.00032227,4]
[328420941,1717371092707,-500.0,0.00032227,4]
[328420942,1717371092717,-1827.81,0.00032227,4]
[328420943,1717371092726,-500.0,0.00032227,4]
[328420944,1717371092736,-1608.46,0.00032227,4]
[328420945,1717371092745,-500.0,0.00032227,4]
[328420946,1717371092757,-500.0,0.00032227,4]
[328420947,1717371092766,-592.97,0.00032227,4]
[328420948,1717371092775,-500.0,0.00032227,4]
[328420949,1717371092785,-751.49,0.00032227,4]
[328420950,1717371092794,-500.0,0.00032227,4]
[328420951,1717371092803,-866.13,0.00032227,4]
[328420952,1717371092813,-500.0,0.00032227,4]
[328420953,1717371092822,-500.0,0.00032227,4]
[328420954,1717371092831,-1306.76,0.00032227,4]
[328420955,1717371092841,-500.0,0.00032227,4]
[328420956,1717371092850,-500.0,0.00032227,4]
[328420957,1717371092859,-500.0,0.00032227,4]
[328420958,1717371092869,-500.0,0.00032228,4]
[328420959,1717371092878,-500.0,0.00032228,4]
[328420960,1717371092887,-500.0,0.00032228,4]
[328420961,1717371092897,-500.0,0.00032228,4]
[328420962,1717371092906,-500.0,0.00032228,4]
[328420963,1717371092915,-573.17,0.00032228,4]
[328420964,1717371092924,-500.0,0.00032228,4]
[328420965,1717371092933,-500.0,0.00032228,4]
[328420966,1717371092942,-500.0,0.00032228,4]
[328420967,1717371092951,-500.0,0.00032228,4]
[328420968,1717371092960,-500.0,0.00032228,4]
[328420969,1717371092969,-500.0,0.00032228,4]
[328420970,1717371092978,-533.80945978,0.00032228,4]
[328420971,1717371092987,-500.0,0.00032228,4]
[328420972,1717371092996,-610.34,0.00032228,4]
[328420973,1717371093005,-531.57782008,0.00032228,4]
[328420974,1717371093014,-500.0,0.00032228,4]
[328420975,1717371093023,-217.89859733,0.00032228,4]
[328420976,1717371093032,-500.0,0.00032228,4]
[328420977,1717371093041,-529.32956038,0.00032228,4]
[328420978,1717371093050,-500.0,0.00032228,4]
[328420979,1717371093059,-500.0,0.00032228,4]
[328420980,1717371093069,-500.0,0.00032228,4]
[328420981,1717371093078,-500.0,0.00032228,4]
[328420982,1717371093087,-500.0,0.00032228,4]
[328420983,1717371093096,-599.18,0.00032228,4]
[328420984,1717371093105,-500.0,0.00032228,4]
[328420985,1717371093115,-500.0,0.00032228,4]
[328420986,1717371093124,-528.70285712,0.00032228,4]
[328420987,1717371093133,-166.85668509,0.00032228,4]
[328420988,1717371093142,-518.86700126,0.00032228,4]
[328420989,1717371093151,-547.26983139,0.00032228,4]
[328420990,1717371093160,-500.0,0.00032228,4]
[328420991,1717371093169,-500.0,0.00032228,4]
[328420992,1717371093178,-500.0,0.00032228,4]
[328420993,1717371093187,-582.7,0.00032228,4]
[328420994,1717371093197,-500.0,0.00032228,4]
[328420995,1717371093206,-433.06753439,0.00032228,4]
[328420996,1717371093214,-500.0,0.00032228,4]
[328420997,1717371093224,-500.0,0.00032228,4]
[328420998,1717371093233,-500.0,0.00032228,4]
[328420999,1717371093242,-500.0,0.00032228,4]
[328421000,1717371093251,-643.63360089,0.00032228,4]
[328421001,1717371093260,-500.0,0.00032228,4]
[328421002,1717371093270,-495.21514228,0.00032228,4]
[328421003,1717371093279,-500.0,0.00032228,4]
[328421004,1717371093288,-500.0,0.00032228,4]
[328421005,1717371093297,-700.2,0.00032228,4]
[328421006,1717371093308,-500.0,0.00032228,4]
[328421007,1717371093318,-500.0,0.00032228,4]
[328421008,1717371093329,-500.0,0.00032228,4]
[328421009,1717371093338,-500.0,0.00032228,4]
[328421010,1717371093349,-500.0,0.00032228,4]
[328421011,1717371093360,-444.16605103,0.00032228,4]
[328421012,1717371093371,-500.0,0.00032228,4]
[328421013,1717371093381,-500.0,0.00032228,4]
[328421014,1717371093393,-500.0,0.00032228,4]
[328421015,1717371093403,-500.0,0.00032228,4]
[328421016,1717371093413,-615.25,0.00032228,4]
[328421017,1717371093423,-504.71,0.00032228,4]
[328421018,1717371093431,-500.0,0.00032228,4]
[328421019,1717371093441,-500.0,0.00032228,4]
[328421020,1717371093453,-500.0,0.00032228,4]
[328421021,1717371093463,-500.0,0.00032228,4]
[328421022,1717371093472,-500.0,0.00032228,4]
[328421023,1717371093481,-500.0,0.00032228,4]
[328421024,1717371093491,-500.0,0.00032228,4]
[328421025,1717371093500,-500.0,0.00032228,4]
[328421026,1717371093509,-597.94,0.00032228,4]
[328421027,1717371093520,-500.0,0.00032228,4]
[328421028,1717371093530,-500.0,0.00032228,4]
[328421029,1717371093540,-500.0,0.00032228,4]
[328421030,1717371093551,-500.0,0.00032228,4]
[328421031,1717371093560,-500.0,0.00032228,4]
[328421032,1717371093570,-500.0,0.00032228,4]
[328421033,1717371093579,-500.0,0.00032228,4]
[328421034,1717371093588,-500.0,0.00032228,4]
[328421035,1717371093598,-500.0,0.00032228,4]
[328421036,1717371093607,-590.01,0.00032228,4]
[328421037,1717371093616,-155.67,0.00032228,4]
[328421038,1717371093626,-540.44,0.00032228,4]
[328421039,1717371093637,-500.0,0.00032228,4]
[328421040,1717371093647,-592.45,0.00032228,4]
[328421041,1717371093657,-500.0,0.00032228,4]
[328421042,1717371093667,-500.0,0.00032228,4]
[328421043,1717371093679,-707.92,0.00032228,4]
[328421044,1717371093688,-500.0,0.00032228,4]
[328421045,1717371093697,-500.0,0.00032228,4]
[328421046,1717371093707,-500.0,0.00032228,4]
[328421047,1717371093717,-605.96,0.00032228,4]
[328421048,1717371093726,-539.36,0.00032228,4]
[328421049,1717371093736,-500.0,0.00032228,4]
[328421050,1717371093746,-500.0,0.00032228,4]
[328421051,1717371093756,-500.0,0.00032228,4]
[328421052,1717371093765,-500.0,0.00032228,4]
[328421053,1717371093775,-500.0,0.00032228,4]
[328421054,1717371093784,-500.0,0.00032228,4]
[328421055,1717371093794,-500.0,0.00032228,4]
[328421056,1717371093804,-416.15216842,0.00032228,4]
[328421057,1717371093813,-500.0,0.00032228,4]
[328421058,1717371093823,-500.0,0.00032228,4]
[328421059,1717371093832,-500.0,0.00032228,4]
[328421060,1717371093842,-485.20323386,0.00032228,4]
[328421061,1717371093853,-500.0,0.00032228,4]
[328421062,1717371093862,-500.0,0.00032228,4]
[328421063,1717371093871,-500.0,0.00032228,4]
[328421064,1717371093880,-500.0,0.00032228,4]
[328421065,1717371093891,-500.0,0.00032228,4]
[328421066,1717371093900,-391.52,0.00032228,4]
[328421067,1717371093909,-500.0,0.00032228,4]
[328421068,1717371093919,-500.0,0.00032228,4]
[328421069,1717371093929,-500.0,0.00032228,4]
[328421070,1717371093939,-255.33167522,0.00032228,4]
[328421071,1717371093949,-500.0,0.00032228,4]
[328421072,1717371093959,-500.0,0.00032228,4]
[328421073,1717371093969,-520.26571557,0.00032228,4]
[328421074,1717371093978,-500.0,0.00032228,4]
[328421075,1717371093988,-500.0,0.00032228,4]
[328421076,1717371093998,-500.0,0.00032228,4]
[328421077,1717371094008,-500.0,0.00032228,4]
[328421078,1717371094018,-500.0,0.00032228,4]
[328421079,1717371094027,-500.0,0.00032228,4]
[328421080,1717371094036,-500.0,0.00032228,4]
[328421081,1717371094047,-575.85560758,0.00032228,4]
[328421082,1717371094056,-500.0,0.00032228,4]
[328421083,1717371094065,-527.40180958,0.00032228,4]
[328421084,1717371094075,-500.0,0.00032228,4]
[328421085,1717371094084,-500.0,0.00032228,4]
[328421086,1717371094094,-500.0,0.00032228,4]
[328421087,1717371094105,-500.0,0.00032228,4]
[328421088,1717371094116,-500.0,0.00032228,4]
[328421089,1717371094127,-500.0,0.00032228,4]
[328421090,1717371094136,-500.0,0.00032228,4]
[328421091,1717371094146,-588.90533432,0.00032228,4]
[328421092,1717371094155,-500.0,0.00032228,4]
[328421093,1717371094165,-500.0,0.00032228,4]
[328421094,1717371094176,-500.0,0.00032228,4]
[328421095,1717371094185,-202.67357045,0.00032228,4]
[328421096,1717371094194,-500.0,0.00032228,4]
[328421097,1717371094203,-500.0,0.00032228,4]
[328421098,1717371094214,-8095.33,0.00032228,4]
[328421099,1717371094226,-282.62346163,0.00032228,4]
[328421100,1717371094236,-500.0,0.00032228,4]
[328421101,1717371094245,-1817.32,0.00032228,4]
[328421102,1717371094255,-1662.32,0.00032228,4]
[328421103,1717371094265,-2228.05,0.00032228,4]
[328421104,1717371094274,-500.0,0.00032228,4]
[328421105,1717371094284,-525.43926398,0.00032228,4]
[328421106,1717371094293,-500.0,0.00032228,4]
[328421107,1717371094303,-500.0,0.00032228,4]
[328421108,1717371094312,-500.0,0.00032228,4]
[328421109,1717371094321,-500.0,0.00032228,4]
[328421110,1717371094331,-555.54,0.00032228,4]
[328421111,1717371094341,-2477.72,0.00032228,4]
[328421112,1717371094350,-500.0,0.00032228,4]
[328421113,1717371094359,-534.23065444,0.00032228,4]
[328421114,1717371094370,-500.0,0.00032228,4]
[328421115,1717371094380,-10414.42,0.00032228,4]
[328421116,1717371094391,-1251.87,0.00032228,4]
[328421117,1717371094402,-500.0,0.00032228,4]
[328421118,1717371094412,-500.0,0.00032228,4]
[328421119,1717371094584,-164.8204996,0.00032228,4]
[328421120,1717371094593,-500.0,0.00032228,4]
[328421121,1717371094603,-505.0,0.00032228,4]
[328421122,1717371094613,-1307.86,0.00032228,4]
[328421123,1717371094622,-500.0,0.00032228,4]
[328421124,1717371094631,-500.0,0.00032228,4]
[328421125,1717371094640,-653.28,0.00032228,4]
[328421126,1717371094649,-500.0,0.00032228,4]
[328421127,1717371094659,-500.0,0.00032228,4]
[328421128,1717371094668,-500.0,0.00032228,4]
[328421129,1717371094680,-500.0,0.00032228,4]
[328421130,1717371094689,-1861.34,0.00032228,4]
[328421131,1717371094699,-500.0,0.00032228,4]
[328421132,1717371094708,-500.0,0.00032228,4]
[328421133,1717371094719,-500.0,0.00032228,4]
[328421134,1717371094728,-500.0,0.00032228,4]
[328421135,1717371094738,-3510.65,0.00032228,4]
[328421136,1717371094750,-500.0,0.00032228,4]
[328421137,1717371094759,-500.0,0.00032228,4]
[328421138,1717371094769,-500.0,0.00032228,4]
[328421139,1717371094778,-1153.56,0.00032228,4]
[328421140,1717371094788,-500.0,0.00032228,4]
[328421141,1717371094798,-513.17608353,0.00032228,4]
[328421142,1717371094807,-606.11,0.00032228,4]
[328421143,1717371094817,-500.0,0.00032228,4]
[328421144,1717371094827,-546.11349208,0.00032228,4]
[328421145,1717371094837,-743.26,0.00032228,4]
[328421146,1717371094848,-500.0,0.00032228,4]
[328421147,1717371094857,-518.56838519,0.00032228,4]
[328421148,1717371094868,-870.16,0.00032228,4]
[328421149,1717371094877,-829.62,0.00032228,4]
[328421150,1717371094887,-520.31359901,0.00032228,4]
[328421151,1717371094896,-1219.6,0.00032228,4]
[328421152,1717371094906,-500.0,0.00032228,4]
[328421153,1717371094915,-500.0,0.00032228,4]
[328421154,1717371094925,-532.28531567,0.00032228,4]
[328421155,1717371094935,-500.0,0.00032228,4]
[328421156,1717371094944,-500.0,0.00032228,4]
[328421157,1717371094954,-500.0,0.00032228,4]
[328421158,1717371094963,-500.0,0.00032228,4]
[328421159,1717371094974,-500.0,0.00032228,4]
[328421160,1717371094984,-500.0,0.00032228,4]
[328421161,1717371094994,-500.0,0.00032228,4]
[328421162,1717371095004,-500.0,0.00032228,4]
[328421163,1717371095014,-500.0,0.00032228,4]
[328421164,1717371095024,-500.0,0.00032228,4]
[328421165,1717371095034,-513.99,0.00032228,4]
[328421166,1717371095043,-500.0,0.00032228,4]
[328421167,1717371095054,-500.0,0.00032228,4]
[328421168,1717371095064,-500.0,0.00032228,4]
[328421169,1717371095075,-500.0,0.00032228,4]
[328421170,1717371095085,-588.98,0.00032228,4]
[328421171,1717371095095,-500.0,0.00032228,4]
[328421172,1717371095105,-500.0,0.00032228,4]
[328421173,1717371095114,-150.0,0.00032254,7]
[328421174,1717371095123,-176.926326,0.00032267,7]
[328421175,1717371095133,-150.0,0.00032271,7]
[328421176,1717371095143,-236.20195885,0.00032274,30]
[328421177,1717371095152,-166.3188502,0.00032292,2]
[328421178,1717371095161,-150.0,0.00032296,7]
[328421179,1717371095172,-150.0,0.00032317,7]
[328421180,1717371095181,-150.0,0.00032325,7]
[328421181,1717371095191,-416.68,0.00032329,2]
[328421182,1717371095201,-872.03,0.00032329,2]
[328421183,1717371095210,-872.03,0.00032329,2]
[328421184,1717371095220,-416.68,0.00032329,2]
[328421185,1717371095229,-872.03,0.00032329,2]
[328421186,1717371095238,-416.68,0.00032329,2]
[328421187,1717371095248,-416.68,0.00032329,2]
[328421188,1717371095257,-872.03,0.00032329,2]
[328421189,1717371095267,-416.68,0.00032329,2]
[328421190,1717371095276,-872.03,0.00032329,2]
[328421191,1717371095286,-416.68,0.00032329,2]
[328421192,1717371095295,-497.22,0.00032329,2]
[328421193,1717371095304,-416.68,0.00032329,2]
[328421194,1717371095314,-181.39,0.00032329,2]
[328421195,1717371095323,-150.0,0.00032334,7]
[328421196,1717371095332,-19633.96026482,0.00032348,15]
[328421197,1717371095343,-5881.30390149,0.00032348,15]
[328421198,1717371095353,-150.0,0.00032368,7]
[328421199,1717371095363,-150.0,0.00032396,7]
[328421200,1717371095373,-150.0,0.00032396,7]
[328421201,1717371095383,-150.0,0.00032396,7]
[328421202,1717371095393,-150.0,0.00032396,7]
[328421203,1717371095404,-150.0,0.000324,7]
[328421204,1717371095414,-158.46460464,0.00032401,7]
[328421205,1717371095426,-236.20195885,0.00032411,30]
[328421206,1717371095436,-3753.36893321,0.00032411,4]
[328421207,1717371095445,-500.0,0.00032412,4]
[328421208,1717371095455,-500.0,0.00032412,4]
[328421209,1717371095464,-500.0,0.00032412,4]
[328421210,1717371095473,-500.0,0.00032412,4]
[328421211,1717371095483,-617.47,0.00032412,4]
[328421212,1717371095492,-500.0,0.00032412,4]
[328421213,1717371095502,-500.0,0.00032412,4]